bitfinex-derivatives/quotes_BTCF0:USTF0_20230402
["timestamp","ask_amount","ask_price","bid_price","bid_amount"]
[1680454488230,1.868,28146.0,28145.0,0.5344]
[1680454488531,1.548,28146.0,28145.0,0.9224]
[1680454490638,1.548,28146.0,28145.0,0.5844]
[1680454492937,1.548,28146.0,28145.0,0.2279]
[1680454493127,1.548,28146.0,28145.0,0.1779]
[1680454494042,1.548,28146.0,28145.0,0.0898]
[1680454494932,1.548,28146.0,28145.0,0.10998872]
[1680454495738,1.548,28146.0,28145.0,0.19878872]
[1680454495929,1.548,28146.0,28145.0,0.55528872]
[1680454496135,1.548,28146.0,28145.0,0.60528872]
[1680454498230,1.548,28146.0,28145.0,0.19878872]
[1680454502042,1.548,28146.0,28145.0,0.10998872]
[1680454508050,1.548,28146.0,28145.0,0.0898]
[1680454508356,1.8487,28146.0,28143.0,0.0883]
[1680454508544,2.2382,28146.0,28136.0,0.05]
[1680454508749,0.3007,28141.0,28138.0,0.0881]
[1680454508946,0.3007,28141.0,28139.0,0.00714186]
[1680454510351,0.3007,28141.0,28138.0,0.0881]
[1680454510555,0.3007,28141.0,28140.0,0.00714155]
[1680454510849,0.3007,28141.0,28138.0,0.0881]
[1680454511150,0.3007,28141.0,28140.0,0.00714145]
[1680454511553,0.3007,28141.0,28136.0,0.05]
[1680454511554,0.4,28139.0,28136.0,0.05]
[1680454511849,0.05,28140.0,28136.0,0.0885]
[1680454512045,0.3007,28138.0,28135.0,0.1386]
[1680454512246,0.3187,28141.0,28138.0,0.05]
[1680454512443,0.3187,28141.0,28138.0,0.1381]
[1680454512652,0.022,28140.0,28138.0,0.1381]
[1680454513051,0.3007,28141.0,28138.0,0.4388]
[1680454513256,0.3227,28141.0,28139.0,0.05]
[1680454513557,0.37560214,28141.0,28139.0,0.05]
[1680454513753,0.37560214,28141.0,28138.0,0.0891]
[1680454514157,0.35360214,28141.0,28138.0,0.0881]
[1680454514457,0.018,28140.0,28138.0,0.0891]
[1680454514659,0.37560214,28141.0,28138.0,0.0891]
[1680454514860,0.37560214,28141.0,28139.0,0.00260883]
[1680454515051,0.0881,28140.0,28136.0,0.05]
[1680454515357,0.3007,28138.0,28136.0,0.05]
[1680454515746,0.3007,28137.0,28135.0,0.0381]
[1680454515951,0.3007,28137.0,28135.0,0.0886]
[1680454516152,0.00215062,28136.0,28135.0,0.0886]
[1680454517058,0.3057,28138.0,28135.0,0.0886]
[1680454517555,0.012,28136.0,28135.0,0.0896]
[1680454517749,0.3007,28138.0,28135.0,0.0896]
[1680454517750,0.3007,28138.0,28135.0,0.0886]
[1680454517953,0.3057,28138.0,28135.0,0.0886]
[1680454518352,0.005,28136.0,28135.0,0.0886]
[1680454518759,0.3007,28138.0,28135.0,0.0886]
[1680454518953,0.3057,28138.0,28135.0,0.0886]
[1680454519767,0.6064,28138.0,28135.0,0.0886]
[1680454519954,0.005,28136.0,28135.0,0.0886]
[1680454520356,0.05,28137.0,28135.0,0.0886]
[1680454520561,0.6064,28138.0,28135.0,0.0886]
[1680454520853,0.05,28137.0,28135.0,0.0886]
[1680454521161,0.1068,28136.0,28135.0,0.001]
[1680454521561,0.0888,28136.0,28130.0,0.1381]
[1680454521762,0.3007,28133.0,28130.0,0.1381]
[1680454521962,0.3007,28133.0,28131.0,0.0882]
[1680454522156,0.00476545,28132.0,28131.0,0.0882]
[1680454523165,0.00976545,28132.0,28131.0,0.0882]
[1680454523555,0.00476545,28132.0,28131.0,0.0882]
[1680454523756,0.00576545,28132.0,28131.0,0.0962]
[1680454524152,0.00976545,28132.0,28131.0,0.0882]
[1680454524956,0.06347237,28132.0,28131.0,0.0882]
[1680454525162,0.00976545,28132.0,28131.0,0.0882]
[1680454525668,0.00576545,28132.0,28131.0,0.0962]
[1680454526058,0.01676545,28132.0,28131.0,0.0892]
[1680454526463,0.02676545,28132.0,28131.0,0.0892]
[1680454526965,0.01676545,28132.0,28131.0,0.0892]
[1680454527666,0.02676545,28132.0,28131.0,0.0892]
[1680454528462,0.08033118,28132.0,28131.0,0.0892]
[1680454528669,0.01676545,28132.0,28131.0,0.0892]
[1680454528968,0.01676545,28132.0,28131.0,0.0898]
[1680454529163,0.02276545,28132.0,28131.0,0.1398]
[1680454530057,0.00476545,28132.0,28131.0,0.1408]
[1680454530369,0.3007,28134.0,28131.0,0.1408]
[1680454530569,0.3007,28134.0,28131.0,0.052]
[1680454532068,0.3007,28134.0,28132.0,0.0883]
[1680454532269,0.3227,28134.0,28132.0,0.0883]
[1680454533175,0.3227,28134.0,28132.0,0.0893]
[1680454534775,0.3187,28134.0,28132.0,0.0893]
[1680454536481,0.3187,28134.0,28132.0,0.0895]
[1680454537070,0.00981022,28133.0,28132.0,0.0895]
[1680454538381,0.02181022,28133.0,28132.0,0.0895]
[1680454539271,0.01481022,28133.0,28132.0,0.0885]
[1680454541874,0.06689346,28133.0,28132.0,0.0885]
[1680454542075,0.01481022,28133.0,28130.0,0.0885]
[1680454545382,0.06941286,28133.0,28130.0,0.0885]
[1680454547476,0.3007,28131.0,28129.0,0.05]
[1680454548485,0.3017,28131.0,28130.0,0.0885]
[1680454549280,0.3902,28131.0,28129.0,0.058]
[1680454549475,0.3017,28131.0,28130.0,0.008]
[1680454552187,0.31151456,28131.0,28130.0,0.008]
[1680454557189,0.31151456,28131.0,28130.0,0.0791]
[1680454564895,0.52375143,28131.0,28130.0,0.0791]
[1680454567101,0.59485143,28131.0,28130.0,0.008]
[1680454567601,0.52375143,28131.0,28130.0,0.0791]
[1680454568597,0.5242575,28131.0,28130.0,0.0791]
[1680454568798,0.5952575,28131.0,28130.0,0.008]
[1680454569198,0.38251456,28131.0,28130.0,0.008]
[1680454570202,0.43251456,28131.0,28130.0,0.008]
[1680454570402,0.38251456,28131.0,28130.0,0.008]
[1680454570597,0.38251456,28131.0,28127.0,0.0705]
[1680454570598,0.68719641,28131.0,28127.0,0.0705]
[1680454570900,0.17019109,28128.0,28127.0,0.0705]
[1680454571297,0.22019109,28128.0,28127.0,0.0705]
[1680454571594,0.17019109,28128.0,28127.0,0.0775]
[1680454572006,0.24429109,28128.0,28127.0,0.007]
[1680454572397,0.0741,28128.0,28127.0,0.007]
[1680454573201,0.3748,28128.0,28127.0,0.007]
[1680454573502,0.3745,28128.0,28127.0,0.007]
[1680454573898,0.05,28127.0,28123.0,0.0707]
[1680454574097,0.3718,28125.0,28123.0,0.0707]
[1680454575105,0.3748,28125.0,28123.0,0.0717]
[1680454575901,0.3037,28125.0,28124.0,0.0705]
[1680454576098,0.3743,28125.0,28123.0,0.001]
[1680454576407,0.0711,28124.0,28123.0,0.001]
[1680454577206,0.0711,28127.0,28123.0,0.0717]
[1680454577509,0.00943368,28130.0,28126.0,0.0705]
[1680454577809,0.00943368,28130.0,28128.0,0.0709]
[1680454578005,0.00943368,28130.0,28129.0,0.1416]
[1680454578406,0.05460264,28133.0,28129.0,0.2839]
[1680454578602,0.57984837,28134.0,28132.0,0.1418]
[1680454578807,0.57984837,28134.0,28133.0,0.0711]
[1680454580004,0.40965728,28134.0,28133.0,0.0711]
[1680454580205,0.41565728,28134.0,28133.0,0.0711]
[1680454580701,0.58584837,28134.0,28133.0,0.0711]
[1680454580903,0.006,28134.0,28133.0,0.0711]
[1680454581707,0.006,28134.0,28133.0,0.4928]
[1680454582116,0.00943715,28134.0,28133.0,0.4391]
[1680454582316,0.006,28134.0,28133.0,0.4391]
[1680454583115,0.17019109,28140.0,28134.0,0.4065]
[1680454583409,0.17019109,28142.0,28140.0,0.0889]
[1680454583608,0.17019109,28142.0,28141.0,0.4396]
[1680454584203,0.17019109,28143.0,28141.0,0.4396]
[1680454584505,0.17019109,28144.0,28142.0,0.0889]
[1680454584705,0.17019109,28144.0,28142.0,0.1389]
[1680454585608,0.17019109,28144.0,28142.0,0.0889]
[1680454586303,0.17019109,28145.0,28142.0,0.0889]
[1680454586613,0.17019109,28145.0,28142.0,0.0899]
[1680454586614,0.056,28144.0,28142.0,0.0899]
[1680454586802,0.006,28144.0,28142.0,0.0899]
[1680454587007,0.012,28144.0,28142.0,0.0899]
[1680454587409,0.019,28144.0,28142.0,0.0899]
[1680454587607,0.25468185,28143.0,28142.0,0.0899]
[1680454588612,0.012,28144.0,28142.0,0.0899]
[1680454588613,0.26668185,28144.0,28142.0,0.0899]
[1680454589211,0.006,28143.0,28142.0,0.0899]
[1680454589612,0.25468185,28144.0,28142.0,0.0889]
[1680454589814,0.26668185,28144.0,28142.0,0.0899]
[1680454590209,0.006,28143.0,28142.0,0.0899]
[1680454590615,0.006,28143.0,28142.0,0.001]
[1680454590920,0.05,28143.0,28142.0,0.001]
[1680454591215,0.30468185,28143.0,28142.0,0.001]
[1680454591816,0.39358185,28143.0,28142.0,0.001]
[1680454592212,0.39958185,28143.0,28142.0,0.001]
[1680454592606,0.39358185,28143.0,28138.0,0.0886]
[1680454592812,0.39958185,28143.0,28142.0,0.001]
[1680454593009,0.1449,28143.0,28142.0,0.01217704]
[1680454593214,0.1579,28143.0,28142.0,0.001]
[1680454593513,0.45507563,28143.0,28142.0,0.001]
[1680454595118,0.05,28142.0,28135.0,0.439]
[1680454595316,0.3896,28140.0,28135.0,0.439]
[1680454595516,0.05,28139.0,28135.0,0.1383]
[1680454596417,0.019,28139.0,28135.0,0.1393]
[1680454596819,0.05,28138.0,28136.0,0.00913489]
[1680454597222,0.019,28139.0,28136.0,0.00913489]
[1680454598316,0.013,28138.0,28136.0,0.01013489]
[1680454598724,0.05,28139.0,28136.0,0.00913489]
[1680454599536,0.10280741,28139.0,28136.0,0.00913489]
[1680454599733,0.3892,28137.0,28136.0,0.00913489]
[1680454600136,0.3892,28137.0,28132.0,0.1389]
[1680454600825,0.3892,28137.0,28136.0,0.001]
[1680454601231,0.4022,28137.0,28133.0,0.051]
[1680454601635,0.4022,28137.0,28134.0,0.00505254]
[1680454601835,0.3952,28137.0,28136.0,0.001]
[1680454602236,0.8022,28137.0,28133.0,0.001]
[1680454602533,0.05,28136.0,28133.0,0.001]
[1680454603337,0.62194278,28137.0,28133.0,0.001]
[1680454603534,0.05,28136.0,28132.0,0.0889]
[1680454603938,0.3892,28137.0,28132.0,0.0889]
[1680454604139,0.3892,28137.0,28133.0,0.001]
[1680454604140,0.013,28136.0,28133.0,0.001]
[1680454604439,0.063,28136.0,28133.0,0.001]
[1680454604639,0.60894278,28137.0,28132.0,0.0899]
[1680454604839,0.55894278,28137.0,28132.0,0.0899]
[1680454605034,0.013,28136.0,28133.0,0.001]
[1680454605429,0.063,28136.0,28132.0,0.0889]
[1680454605641,0.4082,28137.0,28132.0,0.0899]
[1680454606032,0.4082,28137.0,28132.0,0.3906]
[1680454606232,0.019,28137.0,28135.0,0.0889]
[1680454606633,0.013,28136.0,28135.0,0.0889]
[1680454607139,0.019,28137.0,28135.0,0.0899]
[1680454607438,0.019,28137.0,28135.0,0.0889]
[1680454607638,0.013,28136.0,28135.0,0.0899]
[1680454608041,0.019,28137.0,28135.0,0.0899]
[1680454609238,0.006,28136.0,28135.0,0.0899]
[1680454610138,0.006,28137.0,28135.0,0.0899]
[1680454610542,0.3007,28138.0,28135.0,0.0899]
[1680454611029,0.3007,28138.0,28135.0,0.0889]
[1680454611230,0.006,28137.0,28135.0,0.0899]
[1680454612036,0.006,28137.0,28136.0,0.1389]
[1680454612235,0.05366742,28140.0,28136.0,0.4396]
[1680454612440,0.2698295,28145.0,28139.0,0.4784]
[1680454612441,0.1809295,28145.0,28139.0,0.4784]
[1680454612640,1.64444132,28146.0,28143.0,0.0889]
[1680454613544,1.64444132,28146.0,28144.0,0.00446046]
[1680454613741,1.64844132,28146.0,28144.0,0.00446046]
[1680454615244,1.64844132,28146.0,28144.0,0.01138911]
[1680454615442,1.64744132,28146.0,28144.0,0.01138911]
[1680454616938,1.64744132,28146.0,28145.0,0.0889]
[1680454619243,1.543,28146.0,28145.0,0.0889]
[1680454621236,1.75529384,28146.0,28145.0,0.0889]
[1680454621641,1.543,28146.0,28145.0,0.0889]
[1680454622345,1.79761368,28146.0,28145.0,0.0889]
[1680454625044,1.543,28146.0,28145.0,0.0889]
[1680454625646,1.543,28146.0,28144.0,0.01138911]
[1680454626152,0.05,28145.0,28144.0,0.01138911]
[1680454626945,1.543,28146.0,28144.0,0.01915355]
[1680454626946,1.54,28146.0,28144.0,0.01915355]
[1680454627144,1.54,28146.0,28144.0,0.09872865]
[1680454627546,0.004,28145.0,28144.0,0.09672865]
[1680454627848,0.054,28145.0,28144.0,0.09562865]
[1680454628152,1.543,28146.0,28144.0,0.00692865]
[1680454629042,1.543,28146.0,28145.0,0.0888]
[1680454629240,1.54,28146.0,28145.0,0.0888]
[1680454630354,1.6288,28146.0,28145.0,0.003]
[1680454630762,1.54,28146.0,28145.0,0.003]
[1680454632258,1.544,28146.0,28145.0,0.001]
[1680454632951,1.71390076,28146.0,28145.0,0.001]
[1680454634554,1.71390076,28146.0,28145.0,0.0898]
[1680454634950,1.71390076,28146.0,28145.0,0.001]
[1680454636356,1.71390076,28146.0,28145.0,0.0898]
[1680454636560,1.544,28146.0,28145.0,0.0898]
[1680454636759,1.71390076,28146.0,28145.0,0.0898]
[1680454636958,1.544,28146.0,28145.0,0.001]
[1680454637356,1.544,28146.0,28145.0,0.0892]
[1680454637659,1.544,28146.0,28145.0,0.001]
[1680454638257,1.544,28146.0,28145.0,0.0898]
[1680454638460,1.544,28146.0,28145.0,0.001]
[1680454640974,1.552,28146.0,28145.0,0.002]
[1680454641759,1.549,28146.0,28145.0,0.001]
[1680454641952,1.549,28146.0,28145.0,0.10665114]
[1680454642166,1.54,28146.0,28145.0,0.09235114]
[1680454642860,1.542,28146.0,28145.0,0.08735114]
[1680454644371,1.542,28146.0,28145.0,0.30065114]
[1680454644668,1.54,28146.0,28145.0,0.30065114]
[1680454644967,1.54,28146.0,28145.0,0.60635114]
[1680454645570,1.54,28146.0,28145.0,0.39305114]
[1680454647067,1.54,28146.0,28145.0,0.46395114]
[1680454648967,1.54,28146.0,28145.0,0.60535114]
[1680454652066,1.54,28146.0,28145.0,0.46395114]
[1680454652861,1.54,28146.0,28145.0,0.60565114]
[1680454655676,1.541,28146.0,28145.0,0.61765114]
[1680454656067,1.54,28146.0,28145.0,0.60065114]
[1680454656269,1.541,28146.0,28145.0,0.62465114]
[1680454657669,1.541,28146.0,28145.0,0.18231761]
[1680454657869,1.71090076,28146.0,28145.0,0.18231761]
[1680454662076,1.541,28146.0,28145.0,0.11121761]
[1680454662476,2.08313752,28146.0,28145.0,0.04081761]
[1680454662877,2.08313752,28146.0,28145.0,0.024]
[1680454664675,0.05,28145.0,28144.0,0.00692865]
[1680454664882,0.29126065,28145.0,28144.0,0.00692865]
[1680454665784,0.30326065,28145.0,28144.0,0.00792865]
[1680454666281,0.25326065,28145.0,28144.0,0.00792865]
[1680454666675,0.24126065,28145.0,28144.0,0.00692865]
[1680454666878,0.24726065,28145.0,28144.0,0.00792865]
[1680454668474,0.0769,28145.0,28144.0,0.00792865]
[1680454670886,0.3776,28145.0,28144.0,0.01956628]
[1680454673393,0.6411,28145.0,28137.0,0.05]
[1680454673594,0.3007,28139.0,28136.0,0.0707]
[1680454673799,0.3007,28139.0,28133.0,0.05]
[1680454673800,0.3007,28139.0,28138.0,0.00483013]
[1680454674098,0.3507,28139.0,28133.0,0.1206]
[1680454674298,0.3007,28135.0,28133.0,0.1206]
[1680454675196,0.3007,28135.0,28133.0,0.0706]
[1680454675197,0.6014,28135.0,28133.0,0.0706]
[1680454675393,0.12360236,28134.0,28133.0,0.01]
[1680454675603,0.07360236,28134.0,28133.0,0.01]
[1680454675896,0.07360236,28134.0,28133.0,0.001]
[1680454676895,0.07360236,28134.0,28130.0,0.1211]
[1680454677091,0.00400236,28134.0,28133.0,0.0791]
[1680454677295,0.00400236,28134.0,28133.0,0.008]
[1680454680202,0.00500236,28134.0,28133.0,0.067]
[1680454682696,0.00500236,28134.0,28133.0,0.017]
[1680454682896,0.30570236,28134.0,28133.0,0.017]
[1680454683598,0.35570236,28134.0,28130.0,0.05]
[1680454683796,0.3007,28131.0,28129.0,0.1383]
[1680454684397,0.3007,28130.0,28128.0,0.05]
[1680454684602,0.05,28129.0,28127.0,0.05]
[1680454684905,0.3007,28130.0,28127.0,0.05]
[1680454685398,0.0887,28128.0,28127.0,0.05]
[1680454686697,0.0887,28128.0,28127.0,0.056]
[1680454686893,0.10218085,28128.0,28127.0,0.05]
[1680454687102,0.10518085,28128.0,28127.0,0.056]
[1680454689806,0.01648085,28128.0,28127.0,0.1449]
[1680454690503,0.01648085,28128.0,28127.0,0.056]
[1680454693502,0.01648085,28128.0,28127.0,0.2329]
[1680454693902,0.003,28128.0,28127.0,0.2329]
[1680454695105,0.003,28128.0,28127.0,0.056]
[1680454695603,0.01648353,28128.0,28127.0,0.056]
[1680454697702,0.01648353,28128.0,28127.0,0.1449]
[1680454701711,0.01648353,28128.0,28127.0,0.0949]
[1680454702108,0.01648353,28128.0,28127.0,0.006]
[1680454716621,0.01648353,28128.0,28127.0,0.1443]
[1680454716919,0.3544448,28135.0,28128.0,0.05]
[1680454717112,0.3544448,28135.0,28131.0,0.0883]
[1680454717516,0.52480545,28135.0,28131.0,0.0883]
[1680454718515,0.54680545,28135.0,28131.0,0.0883]
[1680454718919,0.54680545,28135.0,28131.0,0.0893]
[1680454719115,0.05,28132.0,28131.0,0.001]
[1680454719518,0.0889,28133.0,28131.0,0.001]
[1680454719820,0.05,28132.0,28131.0,0.001]
[1680454720123,0.3507,28132.0,28131.0,0.001]
[1680454720923,0.3007,28132.0,28131.0,0.001]
[1680454721514,0.3027,28132.0,28128.0,0.1383]
[1680454722426,0.3007,28132.0,28128.0,0.1383]
[1680454722629,0.17036065,28130.0,28128.0,0.1383]
[1680454722926,0.17036065,28130.0,28128.0,0.439]
[1680454723719,0.17036065,28129.0,28128.0,0.439]
[1680454724319,0.17036065,28129.0,28128.0,0.1383]
[1680454724627,0.17036065,28129.0,28128.0,0.1463]
[1680454724927,0.17036065,28129.0,28128.0,0.1383]
[1680454725126,0.17236065,28129.0,28128.0,0.1463]
[1680454725723,0.002,28129.0,28128.0,0.1463]
[1680454726526,0.002,28129.0,28128.0,0.447]
[1680454726726,0.1723849,28129.0,28128.0,0.447]
[1680454729528,0.002,28129.0,28128.0,0.1463]
[1680454729730,0.002,28129.0,28128.0,0.447]
[1680454731927,0.01385377,28129.0,28128.0,0.447]
[1680454737627,0.18428654,28129.0,28128.0,0.447]
[1680454740441,0.18428654,28129.0,28128.0,0.397]
[1680454740628,0.01385377,28129.0,28128.0,0.397]
[1680454740829,0.18428352,28129.0,28128.0,0.397]
[1680454741331,0.18428352,28129.0,28128.0,0.008]
[1680454741332,0.01385377,28129.0,28128.0,0.008]
[1680454741532,0.22632513,28129.0,28128.0,0.008]
[1680454742234,0.29742513,28129.0,28128.0,0.008]
[1680454742434,0.29542513,28129.0,28127.0,0.0711]
[1680454742636,0.29742513,28129.0,28127.0,0.0711]
[1680454743944,0.21247136,28128.0,28127.0,0.0711]
[1680454745145,0.08485377,28129.0,28127.0,0.0705]
[1680454745747,0.001,28128.0,28127.0,0.0755]
[1680454746141,0.08485377,28129.0,28127.0,0.0705]
[1680454746338,0.01385377,28129.0,28128.0,0.0705]
[1680454746640,0.01385377,28129.0,28128.0,0.1205]
[1680454746840,0.01185377,28129.0,28128.0,0.1205]
[1680454747243,0.47111188,28131.0,28128.0,0.1205]
[1680454747437,0.3007,28131.0,28130.0,0.0711]
[1680454748853,0.48611188,28131.0,28130.0,0.0721]
[1680454749155,0.3097,28131.0,28130.0,0.0721]
[1680454749750,0.48011188,28131.0,28130.0,0.0721]
[1680454751454,0.3097,28131.0,28130.0,0.0721]
[1680454751750,0.48011188,28131.0,28130.0,0.0721]
[1680454752146,0.55121188,28131.0,28130.0,0.001]
[1680454755448,0.3808,28131.0,28130.0,0.001]
[1680454755643,0.55121188,28131.0,28130.0,0.001]
[1680454756156,0.3808,28131.0,28130.0,0.001]
[1680454756452,0.55121188,28131.0,28130.0,0.001]
[1680454757450,0.3808,28131.0,28130.0,0.001]
[1680454760265,0.59327136,28131.0,28130.0,0.001]
[1680454762066,0.53403149,28131.0,28130.0,0.0717]
[1680454764968,0.53403149,28131.0,28130.0,0.07152154]
[1680454767759,0.32156013,28131.0,28130.0,0.07152154]
[1680454771270,0.02086013,28131.0,28130.0,0.07152154]
[1680454771566,0.02086013,28131.0,28130.0,0.07192154]
[1680454773671,0.02086013,28131.0,28130.0,0.0721]
[1680454774063,0.01186013,28131.0,28130.0,0.0711]
[1680454774260,0.002,28131.0,28130.0,0.0811]
[1680454774462,0.002,28131.0,28130.0,0.2227]
[1680454774663,0.22421597,28135.0,28131.0,0.0715]
[1680454774863,0.22421597,28135.0,28134.0,0.0711]
[1680454775275,0.0537448,28135.0,28134.0,0.0711]
[1680454775469,0.25461368,28135.0,28134.0,0.0711]
[1680454777074,0.2622421,28135.0,28134.0,0.0711]
[1680454778471,0.3156135,28135.0,28134.0,0.0711]
[1680454778673,0.6874135,28135.0,28133.0,0.0709]
[1680454779668,0.25461368,28134.0,28133.0,0.0709]
[1680454779980,0.4921,28134.0,28130.0,0.0711]
[1680454780180,0.51363802,28131.0,28130.0,0.0711]
[1680454780869,0.51363802,28131.0,28130.0,0.0761]
[1680454781371,0.51563802,28131.0,28130.0,0.0801]
[1680454782072,0.51563802,28131.0,28130.0,0.009]
[1680454783074,0.3027,28131.0,28130.0,0.009]
[1680454787381,0.002,28131.0,28130.0,0.5221]
[1680454787578,0.05899982,28135.0,28131.0,0.0705]
[1680454787775,0.05899982,28135.0,28134.0,0.0711]
[1680454787979,0.05899982,28135.0,28134.0,0.1211]
[1680454788773,0.0553714,28135.0,28134.0,0.1211]
[1680454789085,0.0533714,28135.0,28134.0,0.1211]
[1680454789379,0.002,28135.0,28134.0,0.1211]
[1680454792688,0.17224698,28135.0,28134.0,0.1211]
[1680454793585,0.002,28135.0,28134.0,0.3346]
[1680454794777,0.002,28135.0,28134.0,0.33611169]
[1680454795089,0.001,28135.0,28134.0,0.3446]
[1680454795382,0.002,28135.0,28134.0,0.3446]
[1680454795886,0.002,28135.0,28134.0,0.34730211]
[1680454796684,0.002,28135.0,28134.0,0.64800211]
[1680454800087,0.05436387,28137.0,28135.0,0.05]
[1680454800288,0.48904698,28142.0,28137.0,0.05]
[1680454800485,0.17024698,28142.0,28141.0,0.0711]
[1680454802297,0.24124698,28142.0,28141.0,0.0721]
[1680454802487,0.19124698,28142.0,28141.0,0.0721]
[1680454802689,0.021,28142.0,28141.0,0.0721]
[1680454802885,0.19124698,28142.0,28141.0,0.0721]
[1680454804189,0.021,28142.0,28141.0,0.0721]
[1680454804590,0.19124698,28142.0,28141.0,0.0721]
[1680454804996,0.021,28142.0,28141.0,0.0721]
[1680454805493,0.34762563,28142.0,28139.0,0.0705]
[1680454805706,0.21247203,28140.0,28139.0,0.0705]
[1680454806190,0.58427203,28141.0,28139.0,0.07855356]
[1680454806494,0.21247203,28140.0,28139.0,0.07855356]
[1680454806697,0.26247203,28140.0,28139.0,0.07855356]
[1680454806886,0.3718,28141.0,28139.0,0.07855356]
[1680454806887,0.28357203,28141.0,28139.0,0.07855356]
[1680454807787,0.16993534,28140.0,28139.0,0.07955356]
[1680454807987,0.16993534,28140.0,28139.0,0.15085356]
[1680454808589,0.002,28140.0,28139.0,0.14985356]
[1680454808993,0.21247203,28141.0,28139.0,0.14985356]
[1680454809291,0.002,28140.0,28139.0,0.07915356]
[1680454809492,0.002,28140.0,28139.0,0.14985356]
[1680454810198,0.002,28140.0,28139.0,0.07875356]
[1680454811491,0.0731,28140.0,28139.0,0.00805356]
[1680454812097,0.002,28140.0,28139.0,0.07915356]
[1680454812293,0.052,28140.0,28139.0,0.07915356]
[1680454812597,0.002,28140.0,28139.0,0.07915356]
[1680454827805,0.17192005,28140.0,28139.0,0.07915356]
[1680454829209,0.24302005,28140.0,28139.0,0.00805356]
[1680454829516,0.24302005,28140.0,28136.0,0.071]
[1680454829713,0.0711,28138.0,28136.0,0.071]
[1680454830025,0.0711,28138.0,28137.0,0.00801649]
[1680454830916,0.16992005,28139.0,28137.0,0.07911649]
[1680454831116,0.16992005,28139.0,28138.0,0.071]
[1680454831607,0.002,28140.0,28138.0,0.071]
[1680454831608,0.17192005,28140.0,28138.0,0.071]
[1680454831807,0.17192005,28140.0,28139.0,0.0705]
[1680454832011,0.24052005,28140.0,28138.0,0.071]
[1680454832214,0.16992005,28139.0,28138.0,0.071]
[1680454832812,0.28507203,28140.0,28138.0,0.071]
[1680454833413,0.001,28139.0,28138.0,0.076]
[1680454833610,0.17136654,28139.0,28138.0,0.076]
[1680454833810,0.001,28139.0,28138.0,0.076]
[1680454834610,0.17036696,28139.0,28138.0,0.071]
[1680454834810,0.22036696,28139.0,28138.0,0.071]
[1680454835017,0.58577203,28140.0,28138.0,0.071]
[1680454835214,0.058,28139.0,28138.0,0.072]
[1680454835721,0.001,28139.0,28138.0,0.08401508]
[1680454835917,0.051,28139.0,28138.0,0.08401508]
[1680454836118,0.058,28139.0,28138.0,0.08001508]
[1680454836315,0.008,28139.0,28138.0,0.08001508]
[1680454836517,0.058,28139.0,28138.0,0.08001508]
[1680454836911,0.051,28139.0,28138.0,0.08401508]
[1680454837418,0.001,28139.0,28138.0,0.08401508]
[1680454837815,0.051,28139.0,28138.0,0.08401508]
[1680454838011,0.54216674,28140.0,28138.0,0.07901508]
[1680454838214,0.002,28139.0,28138.0,0.07901508]
[1680454838413,0.052,28139.0,28138.0,0.071]
[1680454838621,0.002,28139.0,28138.0,0.07833335]
[1680454839311,0.008,28139.0,28138.0,0.07933335]
[1680454839823,0.002,28139.0,28138.0,0.07833335]
[1680454842115,0.0727,28139.0,28138.0,0.00733335]
[1680454843015,0.28517203,28139.0,28138.0,0.00733335]
[1680454847721,0.0727,28139.0,28138.0,0.00733335]
[1680454849016,0.24325721,28139.0,28138.0,0.00733335]
[1680454849222,0.2432568,28139.0,28138.0,0.00733335]
[1680454849421,0.0727,28139.0,28138.0,0.00733335]
[1680454849623,0.0727,28139.0,28138.0,0.07843335]
[1680454849624,0.002,28139.0,28138.0,0.07843335]
[1680454849825,0.002,28139.0,28138.0,0.0781994]
[1680454852125,0.05256159,28142.0,28138.0,0.0781994]
[1680454852325,0.0711,28143.0,28141.0,0.3718]
[1680454852524,0.0711,28143.0,28142.0,0.05]
[1680454853027,0.0711,28143.0,28142.0,0.05670134]
[1680454853827,0.0791,28143.0,28142.0,0.05670134]
[1680454854731,0.0791,28143.0,28142.0,0.05770134]
[1680454856337,0.0791,28143.0,28142.0,0.00770134]
[1680454862139,0.008,28143.0,28142.0,0.07880134]
[1680454864641,0.008,28143.0,28142.0,0.0721]
[1680454864842,0.3087,28143.0,28142.0,0.0721]
[1680454865639,0.52117203,28143.0,28142.0,0.0716]
[1680454869943,0.63472563,28143.0,28139.0,0.0711]
[1680454870142,0.3007,28140.0,28139.0,0.0711]
[1680454872136,0.3718,28140.0,28138.0,0.0711]
[1680454872339,0.17029745,28139.0,28138.0,0.0711]
[1680454872948,0.3728,28140.0,28138.0,0.0711]
[1680454873448,0.002,28139.0,28138.0,0.0811]
[1680454875045,0.3728,28140.0,28138.0,0.0811]
[1680454875444,0.002,28139.0,28138.0,0.0711]
[1680454876246,0.43494092,28140.0,28138.0,0.0721]
[1680454876745,0.009,28139.0,28138.0,0.0721]
[1680454877945,0.05,28139.0,28138.0,0.071]
[1680454878250,0.05,28139.0,28138.0,0.072]
[1680454878546,0.009,28139.0,28138.0,0.072]
[1680454878748,0.059,28139.0,28138.0,0.072]
[1680454879250,0.009,28139.0,28138.0,0.072]
[1680454882149,0.0801,28139.0,28138.0,0.001]
[1680454891148,0.3808,28139.0,28138.0,0.001]
[1680454895351,0.55109745,28139.0,28138.0,0.001]
[1680454902066,0.55089745,28139.0,28138.0,0.001]
[1680454902763,0.3806,28139.0,28138.0,0.001]